fUSD/lending_fUSD_20260421
["ID","MTS","AMOUNT","RATE_DAILY","PERIOD"]
[420914899,1776719439608,-696.40112496,0.00015681,2]
[420914904,1776719439974,-2117.85157499,8.572e-05,2]
[420914905,1776719440026,-665.0,8.572e-05,2]
[420914906,1776719440081,-514.07266405,8.572e-05,2]
[420914907,1776719440093,-512.27802841,8.572e-05,2]
[420914908,1776719440104,-207093.88213255,8.572e-05,2]
[420914909,1776719440114,-16119.67346615,0.00015681,2]
[420914910,1776719440124,-322.319478,0.00015767,2]
[420914911,1776719440134,-491.298635,0.00015767,7]
[420914912,1776719440143,-341.495751,0.00015767,7]
[420914913,1776719440153,-2263.1729641,0.00015807,2]
[420914914,1776719440163,-161.9,0.00015839,2]
[420914915,1776719440172,-419.52,0.0001587,2]
[420914916,1776719440182,-500.0,0.0001589,2]
[420914917,1776719440192,-500.0,0.0001589,2]
[420914918,1776719440201,-500.0,0.0001589,2]
[420914919,1776719440211,-500.0,0.0001589,2]
[420914920,1776719440220,-500.0,0.0001589,2]
[420914921,1776719440230,-500.0,0.0001589,2]
[420914922,1776719440239,-635.12624257,0.0001589,2]
[420914923,1776719440249,-2000.0,0.0001589,2]
[420914924,1776719440258,-4000.0,0.00015895,2]
[420914925,1776719440268,-150.0,0.000159,2]
[420914926,1776719440277,-150.0,0.000159,2]
[420914927,1776719440286,-150.0,0.000159,2]
[420914928,1776719440296,-150.22138901,0.000159,2]
[420914929,1776719440306,-162.0,0.00015905,2]
[420914930,1776719440316,-7564.0,0.00015973,2]
[420914931,1776719440325,-2817.0,0.0001599,2]
[420914932,1776719440335,-194.72792766,0.0001599,2]
[420914933,1776719440344,-2948.40500706,0.00015999,2]
[420914934,1776719440354,-247.06300183,0.00016,2]
[420914935,1776719440363,-247.40147927,0.00016,2]
[420914936,1776719440372,-150.00000001,0.00016,2]
[420914937,1776719440382,-150.0,0.00016,2]
[420914938,1776719440391,-150.00000001,0.00016,2]
[420914939,1776719440401,-152.53389494,0.00016,2]
[420914940,1776719440411,-150.0,0.00016,2]
[420914941,1776719440421,-150.0,0.00016,2]
[420914942,1776719440431,-49034.08513639,0.00016,2]
[420914943,1776719440440,-242.52360914,0.00016,2]
[420914944,1776719440450,-1572.23861089,0.00016003,2]
[420914945,1776719440460,-890.35,0.00016049,2]
[420914946,1776719440474,-150.0,0.00016137,2]
[420914947,1776719440483,-505.0,0.00016269,4]
[420914948,1776719440493,-4000.0,0.00016282,2]
[420914949,1776719440503,-6030.0,0.00016331,2]
[420914950,1776719440512,-364.0,0.00016331,2]
[420914951,1776719440522,-2000.0,0.000164,2]
[420914952,1776719440531,-1992.91,0.000164,2]
[420914953,1776719440540,-231.36,0.000164,2]
[420914954,1776719440552,-900.0,0.00016438,2]
[420914955,1776719440562,-201.93286098,0.00016538,2]
[420914956,1776719440571,-2000.0,0.0001662,2]
[420914957,1776719440582,-2000.0,0.0001662,2]
[420914958,1776719440592,-2000.0,0.0001662,2]
[420914959,1776719440602,-2000.0,0.0001662,2]
[420914960,1776719440611,-2000.0,0.0001662,2]
[420914961,1776719440621,-2000.0,0.0001662,2]
[420914962,1776719440630,-2000.0,0.0001662,2]
[420914963,1776719440640,-2000.0,0.0001662,2]
[420914964,1776719440650,-2000.0,0.0001662,2]
[420914965,1776719440659,-2000.0,0.0001662,2]
[420914966,1776719440669,-1544.99632809,0.0001662,2]
[420914967,1776719440679,-162.0,0.0001663,2]
[420914968,1776719440688,-500.0,0.00016658,2]
[420914969,1776719440699,-4000.0,0.0001667,2]
[420914970,1776719440712,-150.0,0.00016713,2]
[420914971,1776719440722,-150.051,0.00016713,2]
[420914972,1776719440732,-3528.0,0.00016713,2]
[420914973,1776719440742,-1048.0,0.00016713,2]
[420914974,1776719440751,-1349.0,0.00016713,2]
[420914975,1776719440762,-623.0,0.00016713,2]
[420914976,1776719440772,-150.0,0.00016713,2]
[420914977,1776719440781,-1283.271,0.00016713,2]
[420914978,1776719440791,-2817.0,0.0001695,2]
[420914979,1776719440801,-260.0,0.0001698,2]
[420914980,1776719440811,-350.0,0.00017,2]
[420914981,1776719440821,-577.7,0.00017019,2]
[420914982,1776719440831,-4000.0,0.00017058,2]
[420914983,1776719440841,-1083.0,0.00017125,2]
[420914984,1776719440852,-738.0,0.00017125,2]
[420914985,1776719440861,-480.0,0.00017125,2]
[420914986,1776719440871,-505.0,0.00017544,5]
[420914987,1776719440880,-180.94561319,0.00017627,2]
[420914988,1776719440890,-150.0,0.00017808,2]
[420914989,1776719440900,-176.363612,0.00017823,7]
[420914990,1776719440909,-610.93277837,0.00017962,2]
[420914991,1776719440919,-20487.57394526,0.00018017,2]
[420914992,1776719440929,-500.0,0.00018099,2]
[420914993,1776719440938,-500.0,0.00018099,2]
[420914994,1776719440950,-500.0,0.00018099,2]
[420914995,1776719440960,-500.0,0.00018099,2]
[420914996,1776719440970,-500.0,0.00018099,2]
[420914997,1776719440980,-500.0,0.00018099,2]
[420914998,1776719440990,-679.94,0.00018099,2]
[420914999,1776719440999,-678.18,0.00018099,2]
[420915000,1776719441009,-500.0,0.00018099,2]
[420915001,1776719441019,-500.0,0.00018099,2]
[420915002,1776719441028,-500.0,0.00018099,2]
[420915003,1776719441038,-500.0,0.00018099,2]
[420915004,1776719441048,-500.0,0.00018099,2]
[420915005,1776719441059,-500.0,0.00018099,2]
[420915006,1776719441068,-500.0,0.00018099,2]
[420915007,1776719441078,-1992.91,0.000181,2]
[420915008,1776719441088,-231.36,0.000181,2]
[420915009,1776719441099,-156.0,0.00018467,5]
[420915010,1776719441111,-157.0,0.00018467,5]
[420915011,1776719441121,-3480.34,0.00018533,2]
[420915012,1776719441131,-9999.99,0.00018533,2]
[420915013,1776719441140,-505.0,0.00018818,6]
[420915014,1776719441150,-400.0,0.00019,2]
[420915015,1776719441160,-1046.0,0.00019713,2]
[420915016,1776719441170,-1349.0,0.00019713,2]
[420915017,1776719441180,-623.0,0.00019713,2]
[420915018,1776719441190,-297.06591722,0.000199,2]
[420915019,1776719441199,-260.0,0.00019951,2]
[420915020,1776719441209,-211.9,0.0002,2]
[420915021,1776719441218,-164.0,0.0002,2]
[420915022,1776719441228,-1192.0,0.0002,2]
[420915023,1776719441238,-356.0,0.0002,2]
[420915024,1776719441247,-305.0,0.0002,2]
[420915025,1776719441256,-308.0,0.0002,2]
[420915026,1776719441266,-154.0,0.0002,2]
[420915027,1776719441276,-448.0,0.0002,2]
[420915028,1776719441285,-150.0,0.0002,10]
[420915029,1776719441295,-1021.0,0.0002,2]
[420915030,1776719441304,-840.0,0.0002,2]
[420915031,1776719441314,-229.0,0.0002,2]
[420915032,1776719441324,-505.0,0.00020093,7]
[420915033,1776719441333,-2000.0,0.000201,2]
[420915034,1776719441343,-610.93277837,0.0002031,2]
[420915035,1776719441353,-20487.57394526,0.00020354,2]
[420915036,1776719441362,-890.35,0.00020487,2]
[420915037,1776719441371,-180.94561319,0.00020645,2]
[420915038,1776719441381,-162.0,0.00020795,2]
[420915039,1776719441390,-162.0,0.00020795,2]
[420915040,1776719441400,-500.0,0.00020921,2]
[420915041,1776719441410,-500.0,0.00020921,2]
[420915042,1776719441419,-500.0,0.00020921,2]
[420915043,1776719441429,-164.0,0.00021,2]
[420915044,1776719441439,-450.0,0.00021,2]
[420915045,1776719441448,-1192.0,0.00021,2]
[420915046,1776719441458,-356.0,0.00021,2]
[420915047,1776719441468,-305.0,0.00021,2]
[420915048,1776719441477,-308.0,0.00021,2]
[420915049,1776719441487,-154.0,0.00021,2]
[420915050,1776719441496,-448.0,0.00021,2]
[420915051,1776719441506,-1021.0,0.00021,2]
[420915052,1776719442042,-840.0,0.00021,2]
[420915053,1776719442052,-229.0,0.00021,2]
[420915054,1776719442062,-505.0,0.00021368,8]
[420915055,1776719442072,-570.35,0.00021583,2]
[420915056,1776719442082,-5000.0,0.00021918,2]
[420915057,1776719442093,-961.0,0.00021945,2]
[420915058,1776719442103,-164.0,0.00022,2]
[420915059,1776719442113,-1192.0,0.00022,2]
[420915060,1776719442122,-356.0,0.00022,2]
[420915061,1776719442132,-305.0,0.00022,2]
[420915062,1776719442142,-199.0,0.00022,2]
[420915063,1776719442151,-308.0,0.00022,2]
[420915064,1776719442161,-448.0,0.00022,2]
[420915065,1776719442170,-1021.0,0.00022,2]
[420915066,1776719442180,-840.0,0.00022,2]
[420915067,1776719442190,-184.09,0.00022,30]
[420915068,1776719442200,-229.0,0.00022,2]
[420915069,1776719442209,-199.0,0.00022192,7]
[420915070,1776719442218,-260.0,0.00022589,4]
[420915071,1776719442228,-505.0,0.00022642,9]
[420915072,1776719442237,-610.93277837,0.00022657,2]
[420915073,1776719442247,-1349.0,0.00022713,2]
[420915074,1776719442257,-350.045,0.00022713,2]
[420915075,1776719442266,-2817.0,0.00022905,3]
[420915076,1776719442275,-24621.47332314,0.00023,2]
[420915077,1776719442293,-17366.869809,0.00023,2]
[420915078,1776719442305,-482.25934277,0.00023,2]
[420915089,1776719442911,-235.31866666,0.00016438,7]
[420915090,1776719442921,-314.69200734,0.00017081,2]
[420915091,1776719443018,-2159.30799266,0.00017081,2]
[420915092,1776719443028,-189.77878572,0.00018734,2]
[420915093,1776719443038,-158.95,0.0002,30]
[420915094,1776719443048,-158.95,0.00022175,30]
[420915095,1776719443058,-705.0,0.00022657,7]
[420915096,1776719443068,-1034.0,0.00022657,7]
[420915097,1776719443078,-719.91005076,0.00022657,2]
[420915098,1776719443088,-500.0,0.00022713,7]
[420915099,1776719443098,-10712.67915053,0.00023,2]
[420915100,1776719443108,-351.30075732,0.00023,2]
[420915101,1776719443118,-164.0,0.00023,2]
[420915102,1776719443127,-500.0,0.00023,2]
[420915103,1776719443137,-1192.0,0.00023,2]
[420915104,1776719443146,-356.0,0.00023,2]
[420915105,1776719443155,-305.0,0.00023,2]
[420915106,1776719443165,-160.0,0.00023,7]
[420915107,1776719443174,-308.0,0.00023,2]
[420915108,1776719443184,-448.0,0.00023,2]
[420915109,1776719443195,-1021.0,0.00023,2]
[420915110,1776719443204,-840.0,0.00023,2]
[420915111,1776719443213,-229.0,0.00023,2]
[420915112,1776719443223,-199.0,0.00023014,7]
[420915113,1776719443232,-180.94561319,0.00023663,2]
[420915114,1776719443241,-4533.74481844,0.00023723,120]
[420915115,1776719443251,-158.0,0.00023723,120]
[420915116,1776719443260,-462.0,0.00023723,120]
[420915117,1776719443269,-500.0,0.00023723,120]
[420915118,1776719443278,-2000.0,0.000238,2]
[420915119,1776719443288,-505.0,0.00023917,10]
[420915120,1776719443298,-164.0,0.00024,2]
[420915121,1776719443308,-1192.0,0.00024,2]
[420915122,1776719443317,-356.0,0.00024,2]
[420915123,1776719443327,-305.0,0.00024,2]
[420915124,1776719443336,-308.0,0.00024,2]
[420915125,1776719443345,-448.0,0.00024,2]
[420915126,1776719443354,-1021.0,0.00024,2]
[420915127,1776719443363,-840.0,0.00024,2]
[420915128,1776719443372,-229.0,0.00024,2]
[420915129,1776719443382,-183.38,0.0002405,2]
[420915130,1776719443392,-570.31,0.0002409,2]
[420915131,1776719443401,-160.0,0.00024164,7]
[420915132,1776719443410,-199.0,0.00024164,7]
[420915133,1776719443420,-158.95,0.00024351,60]
[420915134,1776719443429,-200.0,0.0002448,3]
[420915135,1776719443438,-200.0,0.0002448,3]
[420915136,1776719443448,-333.0,0.00024539,2]
[420915137,1776719443457,-500.0,0.00024545,120]
[420915138,1776719443467,-174.03042359,0.0002463,2]
[420915139,1776719443476,-1000.0,0.00024658,2]
[420915140,1776719443486,-373.68,0.00024658,2]
[420915141,1776719443495,-150.0,0.00024658,2]
[420915142,1776719443504,-265.0,0.00024718,2]
[420915143,1776719443514,-150.0,0.00024718,2]
[420915144,1776719443524,-160.0,0.00024718,2]
[420915145,1776719443534,-332.35,0.00024871,2]
[420915146,1776719443544,-392.61,0.00024871,2]
[420915147,1776719443554,-332.33,0.00024872,2]
[420915148,1776719443563,-177.8188824,0.00024874,2]
[420915149,1776719443573,-638.27,0.00024875,2]
[420915150,1776719443583,-332.33,0.0002488,2]
[420915151,1776719443592,-568.11,0.0002488,2]
[420915152,1776719443602,-638.27,0.00024881,2]
[420915153,1776719443611,-477.92,0.00024888,2]
[420915154,1776719443620,-44799.9102908,0.000249,2]
[420915155,1776719443630,-570.35,0.00024912,2]
[420915156,1776719443640,-890.35,0.00024925,2]
[420915157,1776719443650,-411.21,0.00024927,2]
[420915158,1776719443659,-260.0,0.00024931,6]
[420915159,1776719443668,-295.0,0.00024956,2]
[420915160,1776719443678,-150.0,0.00024956,2]
[420915161,1776719443687,-280.0,0.00024956,2]
[420915162,1776719443697,-175.0,0.00024982,120]
[420915163,1776719443706,-164.0,0.00025,2]
[420915164,1776719443715,-550.0,0.00025,2]
[420915165,1776719443725,-321.32398625,0.00025,60]
[420915166,1776719443735,-1192.0,0.00025,2]
[420915167,1776719443746,-358.0,0.00025,2]
[420915168,1776719443755,-309.0,0.00025,2]
[420915169,1776719443764,-313.44672415,0.00025,2]
[420915170,1776719443773,-456.0,0.00025,2]
[420915171,1776719443783,-1033.0,0.00025,2]
[420915172,1776719443793,-840.0,0.00025,2]
[420915173,1776719443802,-241.0,0.00025,2]
[420915174,1776719443812,-610.93277837,0.00025005,2]
[420915175,1776719443822,-500.0,0.00025049,2]
[420915176,1776719443831,-500.0,0.00025049,2]
[420915177,1776719443841,-500.0,0.00025049,2]
[420915178,1776719443850,-500.0,0.00025049,2]
[420915179,1776719443860,-500.0,0.00025049,2]
[420915180,1776719443870,-500.0,0.00025049,2]
[420915181,1776719443880,-679.94,0.00025049,2]
[420915182,1776719443889,-678.18,0.00025049,2]
[420915183,1776719443899,-500.0,0.00025049,2]
[420915184,1776719443908,-500.0,0.00025049,2]
[420915185,1776719443918,-500.0,0.00025049,2]
[420915186,1776719443927,-500.0,0.00025049,2]
[420915187,1776719443937,-500.0,0.00025049,2]
[420915188,1776719443947,-500.0,0.00025049,2]
[420915189,1776719443956,-500.0,0.00025049,2]
[420915190,1776719443966,-176.0,0.00025102,120]
[420915191,1776719443975,-203.0,0.00025102,120]
[420915192,1776719443985,-209.0,0.00025102,120]
[420915193,1776719443995,-163.0,0.00025102,120]
[420915194,1776719444004,-268.0,0.00025189,2]
[420915195,1776719444013,-150.0,0.00025189,2]
[420915196,1776719444023,-174.0,0.00025189,2]
[420915197,1776719444033,-505.0,0.00025192,12]
[420915198,1776719444042,-250.0,0.00025205,6]
[420915199,1776719444051,-250.02,0.00025205,6]
[420915200,1776719444060,-200.0,0.00025283,2]
[420915201,1776719444070,-500.0,0.00025284,3]
[420915202,1776719444079,-2000.0,0.00025284,3]
[420915203,1776719444089,-500.0,0.00025284,3]
[420915204,1776719444099,-200.0,0.00025284,2]
[420915205,1776719444108,-500.0,0.00025367,120]
[420915206,1776719444117,-211.0,0.00025367,120]
[420915207,1776719444127,-167.0,0.00025367,120]
[420915208,1776719444136,-162.0,0.00025373,7]
[420915209,1776719444146,-150.0,0.00025452,2]
[420915210,1776719444155,-150.0,0.00025452,2]
[420915211,1776719444165,-150.0,0.00025452,2]
[420915212,1776719444174,-150.0,0.00025452,2]
[420915213,1776719444183,-247.0,0.00025452,2]
[420915214,1776719444193,-150.0,0.00025456,2]
[420915215,1776719444202,-150.0,0.00025456,2]
[420915216,1776719444211,-150.0,0.00025456,2]
[420915217,1776719444220,-220.0,0.00025456,2]
[420915218,1776719444230,-2817.0,0.00025655,3]
[420915219,1776719444239,-1674.0,0.00025655,3]
[420915220,1776719444248,-184.09,0.00025655,30]
[420915221,1776719444258,-183.38,0.00025669,2]
[420915222,1776719444267,-151.0,0.00025674,2]
[420915223,1776719444276,-568.11,0.00025706,2]
[420915224,1776719444286,-2817.0,0.00025708,3]
[420915225,1776719444295,-299.693,0.00025713,2]
[420915226,1776719444304,-500.0,0.00025718,120]
[420915227,1776719444314,-156.0,0.00025718,120]
[420915228,1776719444324,-199.0,0.00025775,7]
[420915229,1776719444333,-1992.91,0.000258,7]
[420915230,1776719444343,-231.36,0.000258,7]
[420915231,1776719444352,-151.0,0.00025888,2]
[420915232,1776719444361,-150.0,0.0002589,2]
[420915233,1776719444370,-150.0,0.00026,3]
[420915234,1776719444379,-160.46,0.00026027,2]
[420915235,1776719444388,-1576.0,0.00026027,3]
[420915236,1776719444397,-277.84,0.00026105,7]
[420915237,1776719444405,-500.0,0.00026189,120]
[420915238,1776719444414,-175.0,0.00026232,120]
[420915239,1776719444424,-176.0,0.00026358,120]
[420915240,1776719444433,-505.0,0.00026466,13]
[420915241,1776719444443,-332.33,0.00026515,2]
[420915242,1776719444452,-570.35,0.00026515,2]
[420915243,1776719444461,-36275.0,0.00026519,2]
[420915244,1776719444470,-332.33,0.00026519,2]
[420915245,1776719444479,-158.95,0.00026526,60]
[420915246,1776719444488,-264.0,0.0002654,120]
[420915247,1776719444498,-180.94561319,0.00026682,2]
[420915248,1776719444507,-176.0,0.00026847,3]
[420915249,1776719444516,-2817.0,0.00026998,3]
[420915250,1776719444527,-600.0,0.00027,2]
[420915251,1776719444535,-150.0,0.00027,2]
[420915252,1776719444545,-260.0,0.0002701,8]
[420915253,1776719444554,-500.0,0.00027011,120]
[420915254,1776719444563,-2096.0,0.00027062,3]
[420915255,1776719444572,-2817.0,0.00027062,3]
[420915256,1776719444582,-1576.0,0.00027065,3]
[420915257,1776719444591,-2817.0,0.00027065,3]
[420915258,1776719444600,-2817.0,0.00027082,3]
[420915259,1776719444609,-162.0,0.00027147,3]
[420915260,1776719444619,-500.0,0.00027151,120]
[420915261,1776719444628,-2294.16425489,0.00027162,2]
[420915262,1776719444637,-150.0,0.00027185,2]
[420915263,1776719444646,-1992.91,0.000272,7]
[420915264,1776719444655,-231.36,0.000272,7]
[420915265,1776719444664,-477.92,0.0002732,2]
[420915266,1776719444673,-392.61,0.00027335,2]
[420915267,1776719444684,-610.93277837,0.00027352,2]
[420915268,1776719444693,-2817.0,0.00027382,3]
[420915269,1776719444703,-199.0,0.00027386,7]
[420915270,1776719444712,-267.46074303,0.00027397,2]
[420915271,1776719444722,-500.0,0.00027397,2]
[420915272,1776719444731,-500.0,0.00027397,2]
[420915273,1776719444740,-300.0,0.00027397,2]
[420915274,1776719444749,-1000.0,0.00027397,20]
[420915275,1776719444759,-373.68,0.00027397,2]
[420915276,1776719444767,-345.91634105,0.00027397,2]
[420915277,1776719444776,-50653.87,0.00027397,10]
[420915278,1776719444785,-42211.56,0.00027397,10]
[420915279,1776719444795,-300.0,0.00027397,5]
[420915280,1776719444804,-770.0,0.000274,10]
[420915281,1776719444814,-5175.56,0.000274,2]
[420915282,1776719444823,-5175.56,0.000274,2]
[420915283,1776719444833,-5175.56,0.000274,2]
[420915284,1776719444842,-5175.56,0.000274,2]
[420915285,1776719444851,-5175.56,0.000274,2]
[420915286,1776719444860,-162.0,0.00027402,3]
[420915287,1776719444870,-2805.33285548,0.000275,7]
[420915288,1776719444879,-2000.0,0.000275,2]
[420915289,1776719444888,-175.0,0.00027543,120]
[420915290,1776719444898,-199.0,0.00027616,14]
[420915291,1776719444907,-176.0,0.00027675,120]
[420915292,1776719444916,-254.10303525,0.00027741,14]
[420915293,1776719444942,-2474.0,0.00020081,2]
[420915294,1776719444951,-250.89696475,0.00027741,14]
[420915295,1776719444960,-500.0,0.00027832,120]
[420915296,1776719444969,-2817.0,0.00027855,3]
[420915297,1776719444978,-262.23242716,0.00027945,5]
[420915298,1776719444990,-337.76757284,0.00027945,5]
[420915299,1776719444999,-277.35679052,0.00027945,2]
[420915300,1776719445009,-152.07559501,0.00028,2]
[420915302,1776719446002,-20487.57394526,0.0002269,2]
[420915303,1776719446012,-1090.93432506,0.00024457,5]
[420915304,1776719446021,-1044.72719929,0.00024457,5]
[420915305,1776719446030,-347.02440499,0.00028,2]
[420915306,1776719446039,-499.1,0.00028,2]
[420915307,1776719446049,-675.0,0.00028,10]
[420915308,1776719446058,-448.0,0.00028,10]
[420915309,1776719446067,-1034.0,0.00028,10]
[420915310,1776719446076,-211.35075007,0.0002808,2]
[420915311,1776719446085,-332.33,0.00028144,2]
[420915312,1776719446094,-900.0,0.00028493,5]
[420915313,1776719446103,-287.61899177,0.00028493,2]
[420915314,1776719446112,-150.0,0.00028544,2]
[420915315,1776719446122,-500.0,0.00028584,120]
[420915316,1776719446131,-151.0,0.00028585,2]
[420915317,1776719446140,-1992.91,0.000286,7]
[420915318,1776719446149,-231.36,0.000286,7]
[420915319,1776719446158,-500.0,0.00028654,120]
[420915320,1776719446167,-500.0,0.00028667,30]
[420915321,1776719446177,-500.0,0.00028667,120]
[420915322,1776719446186,-500.0,0.00028667,30]
[420915323,1776719446195,-152.0,0.00028668,3]
[420915324,1776719446204,-770.0,0.000287,15]
[420915325,1776719446214,-158.95,0.00028701,60]
[420915326,1776719446223,-500.0,0.000288,7]
[420915327,1776719446232,-500.0,0.000288,7]
[420915328,1776719446242,-500.0,0.000288,7]
[420915329,1776719446251,-508.45,0.000288,7]
[420915330,1776719446260,-162.04542687,0.00028819,2]
[420915331,1776719446269,-260.0,0.00028855,12]
[420915332,1776719446278,-231.94,0.000289,7]
[420915333,1776719446287,-2197.67291566,0.00028906,2]
[420915334,1776719446298,-183.38,0.00028966,2]
[420915335,1776719446307,-199.0,0.00028997,14]
[420915336,1776719446316,-44701.16174614,0.00029,3]
[420915337,1776719446325,-650.0,0.00029,2]
[420915338,1776719446334,-505.0,0.00029015,15]
[420915339,1776719446343,-862.5472231,0.00029041,5]
[420915340,1776719446352,-1444.0,0.00029041,120]
[420915341,1776719446362,-298.26089446,0.00029041,2]
[420915342,1776719446370,-250.0,0.00029137,12]
[420915343,1776719446380,-568.11,0.00029184,2]
[420915344,1776719446389,-1645.77,0.00029203,120]
[420915345,1776719446398,-231.94,0.000293,7]
[420915346,1776719446417,-242.97,0.000293,14]
[420915347,1776719446427,-317.04,0.000293,14]
[420915348,1776719446436,-184.09,0.00029309,60]
[420915350,1776719446446,-890.35,0.00029364,2]
[420915351,1776719446455,-500.0,0.00029476,120]
[420915353,1776719446465,-1900.0,0.000295,10]
[420915355,1776719446474,-309.29654756,0.00029589,2]
[420915357,1776719446483,-1986.05,0.000296,7]
[420915359,1776719446492,-770.0,0.000296,14]
[420915361,1776719446502,-2400.0,0.000296,10]
[420915363,1776719446511,-400.0,0.000297,30]
[420915365,1776719446520,-610.93277837,0.000297,2]
[420915367,1776719446529,-400.0,0.000297,10]
[420915369,1776719446538,-180.94561319,0.000297,2]
[420915371,1776719446548,-5485.57311072,0.000297,2]
[420915373,1776719446558,-242.04887751,0.000297,5]
[420915375,1776719446566,-997.35527274,0.000297,2]
[420915377,1776719446576,-500.0,0.0002978,7]
[420915379,1776719446585,-500.0,0.0002978,120]
[420915381,1776719446595,-507.78445597,0.0002978,120]
[420915383,1776719446604,-500.0,0.0002978,120]
[420915385,1776719446614,-500.0,0.0002978,30]
[420915387,1776719446624,-679.94,0.0002978,120]
[420915389,1776719446633,-678.18,0.0002978,120]
[420915391,1776719446643,-500.0,0.0002978,2]
[420915393,1776719446652,-269.24084404,0.0002978,120]
[420915395,1776719446661,-500.0,0.0002978,120]
[420915397,1776719446670,-500.0,0.0002978,120]
[420915399,1776719446680,-183.38,0.00029782,2]
[420915402,1776719446689,-1645.77,0.00029799,120]
[420915404,1776719446699,-1645.77,0.00029799,120]
[420915406,1776719446708,-1645.77,0.00029799,120]
[420915408,1776719446718,-1645.77,0.00029799,120]
[420915410,1776719446728,-1645.77,0.00029799,120]
[420915412,1776719446737,-1645.77,0.00029799,120]
[420915414,1776719446746,-1645.77,0.00029799,120]
[420915415,1776719446755,-1645.77,0.00029799,120]
[420915417,1776719446765,-1645.77,0.00029799,120]
[420915420,1776719446775,-1645.77,0.00029799,120]
[420915422,1776719446784,-1645.77,0.00029799,120]
[420915424,1776719446793,-1645.77,0.00029799,120]
[420915426,1776719446808,-1645.77,0.00029799,120]
[420915428,1776719446817,-1645.77,0.00029799,120]
[420915430,1776719446827,-1645.77,0.00029799,120]
[420915432,1776719446837,-1645.77,0.00029799,120]
[420915487,1776719447332,-1645.77,0.00029799,120]
[420915490,1776719447376,-1645.77,0.00029799,120]
[420915492,1776719447385,-1645.77,0.00029799,120]
[420915494,1776719447394,-1645.93059906,0.00029799,120]
[420915496,1776719447403,-500.0,0.00029799,30]
[420915498,1776719447413,-500.0,0.00029799,30]
[420915500,1776719447422,-500.0,0.00029799,30]
[420915502,1776719447432,-500.0,0.00029799,30]
[420915504,1776719447445,-366.10407821,0.00029799,30]
[420915507,1776719447459,-133.89592179,0.00029799,30]
[420915509,1776719447469,-500.0,0.00029799,30]
[420915510,1776719447479,-500.0,0.00029799,120]
[420915512,1776719447488,-500.0,0.00029799,120]
[420915514,1776719447497,-500.0,0.00029799,120]
[420915516,1776719447507,-500.0,0.00029799,120]
[420915518,1776719447516,-500.0,0.00029799,120]
[420915520,1776719447525,-500.0,0.00029799,120]
[420915522,1776719447535,-500.0,0.00029799,120]
[420915524,1776719447544,-500.0,0.00029799,120]
[420915526,1776719447555,-500.0,0.00029799,120]
[420915528,1776719447566,-500.0,0.00029799,120]
[420915530,1776719447575,-500.0,0.00029799,120]
[420915532,1776719447585,-500.0,0.00029799,120]